Cogmind - Beta 16 @@@ ROGUE MODE // 2025.12.23 @ 03:16:17 Player: AngelSpirit Result: Destroyed by as-65937 with Assembled Rifle Performance ------------- Evolutions (0) 0 Regions Visited (2) 400 Robots Destroyed (22) 110 Value Destroyed (331) 331 Prototype IDs (0) 0 Alien Tech Used (0) 0 Bonus (0) 0 TOTAL SCORE: 841 Bonus ------- None Cogmind --------- Core Integrity 0/250 Matter 216/300 Energy 100/100 System Corruption 9% Temperature Cool (0) Movement Core (1450) Ox28 Location -10/Mines Parts ------- > --- POWER (1) -------- (None) > --- PROPULSION (2) --- (None) > --- UTILITY (2) ------ Huge Storage Unit > --- WEAPON (2) ------- Assault Rifle Light Cannon > --- INVENTORY (25) --- Improved Ion Engine Wheel High-capacity Matter Pod (166) Assault Rifle Assault Rifle Plasma Cutter Mace Mace Peak State ------------ > --- POWER ------------ Improved Ion Engine > --- PROPULSION ------- Wheel Compact Wheel > --- UTILITY ---------- Huge Storage Unit Light Armor Plating > --- WEAPON ----------- Particle Gun Particle Gun > --- INVENTORY -------- Improved Ion Engine Medium Storage Unit Light Armor Plating Particle Gun Particle Gun Plasma Cutter [Rating: 11] Favorites ----------- Power Improved Ion Engine Engine Improved Ion Engine Propulsion Wheel Wheel Wheel Utility Light Armor Plating Storage Huge Storage Unit Protection Light Armor Plating Weapon Particle Gun Energy Gun Particle Gun Ballistic Gun Light Assault Rifle Ballistic Cannon Light Cannon Build | -11 -10 -10 ------- Run | Yrd Mat Min Slots Evolved . | . . . Power . | . . . Propulsion . | . . . Utility . | . . . Weapon . | . . . Parts Attached 25 | 6 17 2 Power 2 | 1 1 . Engine 2 | 1 1 . Core . | . . . Reactor . | . . . Propulsion 5 | 2 3 . Treads . | . . . Leg . | . . . Wheel 5 | 2 3 . Hover . | . . . Flight . | . . . Utility 7 | 1 6 . Device . | . . . Storage 4 | 1 3 . Processor . | . . . Hackware . | . . . Protection 3 | . 3 . Artifact . | . . . Weapon 11 | 2 7 2 Energy Gun 5 | 2 3 . Energy Cannon . | . . . Ballistic Gun 5 | . 4 1 Ballistic Cannon 1 | . . 1 Launcher . | . . . Special Weapon . | . . . Impact Weapon . | . . . Slashing Weapon . | . . . Piercing Weapon . | . . . Special Melee Weapon . | . . . Unidentified Prototypes . | . . . Parts Lost 8 | . 2 6 Power 1 | . . 1 Propulsion 2 | . . 2 Utility 2 | . 1 1 Weapon 3 | . 1 2 Highest Loss Streak 6 | . 1 6 To Critical Strikes . | . . . Average Backups 6 | . 6 9 Power . | . . 1 Propulsion . | . . 1 Utility 1 | . 1 1 Weapon 2 | . 2 5 Tool/Special . | . . . Unused Backups 11 | . 3 8 Power 2 | . 1 1 Propulsion 1 | . . 1 Utility 2 | . 1 1 Weapon 5 | . 1 4 Tool/Special 1 | . . 1 Average Slot Usage (%) 96 | . 98 73 Engine 13 | . 14 8 Wheel 27 | . 28 16 Storage 14 | . 14 14 Protection 12 | . 12 8 Energy Gun 15 | . 16 . Ballistic Gun 12 | . 11 26 Peak Build Rating 11 | 6 11 9 Average Rating 9 | 4 9 6 On Entrance 5 | . 6 9 Avg Prop Armor Cover (%) . | . . . Naked Turns . | . . . Heaviest Build 96 | 10 96 94 Greatest Support 26 | 26 26 26 Greatest Overweight (x) 3 | . 3 3 Average Overweight (x) 2 | . 2 3 Largest Inventory Capacity 25 | 8 25 25 Average Capacity 23 | 7 23 25 Most Carried 12 | . 12 10 Average Carried 6 | . 6 9 Final Capacity 25 | 8 25 25 Final Carried 10 | . 10 8 Class Distribution -------------------- 100% | Mutant Dominant Class ---------------- Mutant | -10/Materials Mutant | -10/Mines Resources | -11 -10 -10 ----------- Run | Yrd Mat Min Matter Collected 838 | 140 698 . Remotely . | . . . Salvage Created 663 | . 595 68 Parts 41 | . 41 . Haulers Intercepted 2 | . 2 . Recyclers Shooed 1 | . 1 . Parts Field Recycled . | . . . Retrieved Matter . | . . . Parts Self-Destructed . | . . . Prevented . | . . . Parts Restored . | . . . Kills | -11 -10 -10 ------- Run | Yrd Mat Min Combat Hostiles Destroyed 16 | . 12 4 Guns 16 | . 12 4 Classes Destroyed 8 | . 7 1 Worker 2 | . 2 . Hauler 2 | . 2 . Recycler 1 | . 1 . Operator 2 | . 2 . Watcher 3 | . 3 . Swarmer 8 | . 8 . Grunt 4 | . 4 . Assembled 4 | . . 4 Best Kill Streak 4 | . 3 4 Combat Bots Only 4 | . 3 4 Max Kills in Single Turn 1 | . 1 1 Gunslinging . | . . . Exploded . | . . . Melee . | . . . Uniques/NPCs Destroyed . | . . . Combat | -11 -10 -10 -------- Run | Yrd Mat Min Hostile Shots Fired 150 | . 104 46 Missed 38 | . 32 6 Hits 112 | . 72 40 Melee 5 | . . 5 Projectile 107 | . 72 35 AOE 1 | . . 1 Part Disruptions 1 | . . 1 Damage Taken 1324 | . 722 602 Core 258 | . 123 135 Absorbed by Shields . | . . . Regen/Repaired (Parts) 57 | . 57 . Core Remaining (%) 100 | 100 . . Volleys Fired 103 | . 86 17 Largest 2 | . 2 2 Hottest 130 | . 130 50 Shots Fired 173 | . 144 29 Gun 171 | . 144 27 Cannon 2 | . . 2 Launcher . | . . . Special . | . . . Kinetic 90 | . 61 29 Thermal 83 | . 83 . Explosive . | . . . Electromagnetic . | . . . Robot Hit Streak 6 | . 6 5 Robot Miss Streak 4 | . 4 2 Penetration Max . | . . . Secondary Targets 3 | . 2 1 Max Gunslinging Chain 1 | . 1 1 Shots Hit Robots 99 | . 80 19 Core Hits 44 | . 35 9 Critical Kills . | . . . Critical Parts Destroyed . | . . . Critical Strikes 3 | . 3 . Burn 3 | . 3 . Melee Attacks . | . . . Impact . | . . . Slashing . | . . . Piercing . | . . . Sneak Attacks . | . . . Combat Hostiles . | . . . Follow-up Attacks . | . . . Damage Inflicted 1259 | . 1009 250 Guns 1220 | . 1009 211 Cannons 39 | . . 39 Explosions . | . . . Melee . | . . . Ramming . | . . . Kinetic 527 | . 277 250 Thermal 732 | . 732 . Explosive . | . . . Electromagnetic . | . . . Impact . | . . . Slashing . | . . . Piercing . | . . . Highest Corruption 9 | . . 9 Average Corruption 6 | . . 6 Corruption Purged . | . . . Corruption Blocked . | . . . Effects 1 | . . 1 Message Errors 1 | . . 1 Overload Shots . | . . . Overflow Damage . | . . . Projectiles . | . . . Explosions . | . . . Melee . | . . . Knockbacks . | . . . Impact . | . . . Kinetic . | . . . Secondary . | . . . Self-Inflicted Damage . | . . . Shots . | . . . Rammed . | . . . Targets Rammed . | . . . Kicked . | . . . Crushed . | . . . Highest Temperature 367 | . 367 8 Average Temperature 125 | . 125 8 Received Heat Transfer 191 | . 171 20 Effects 5 | . 5 . Energy Bleed 2 | . 2 . Interference 3 | . 3 . Siege Activations . | . . . Martial Activations . | . . . Shielding Activations . | . . . Robots Disrupted . | . . . Combat Hostiles . | . . . Robots Corrupted . | . . . Combat Hostiles . | . . . Parts Fried . | . . . Impact Corruptions . | . . . Robots Melted . | . . . Combat Hostiles . | . . . Parts Melted 4 | . 4 . Heat Transferred 1961 | . 1961 . Parts Sabotaged . | . . . Parts Stolen . | . . . Parts Stripped . | . . . Power Chain Reactions . | . . . Alert | -11 -10 -10 ------- Run | Yrd Mat Min Maximum Alert Level . | . . . Low Security (%) 100 | 100 100 100 Level 1 . | . . . Level 2 . | . . . Level 3 . | . . . Level 4 . | . . . Level 5 . | . . . High Security . | . . . Max Security . | . . . Peak Influence 153 | . 153 18 Initial 18 | . . 18 Average 75 | . 81 6 Influence Increases 469 | . 469 . Destroy 0b10 Robot/C 240 | . 240 . Destroy 0b10 Robot/NC 60 | . 60 . Destroy Leader 60 | . 60 . Successful Hack 49 | . 49 . Disable Machine 15 | . 15 . Lose Combat Pursuer 45 | . 45 . Influence Decreases 469 | . 421 48 Entered New Map 30 | . . 30 Time Decay 411 | . 401 10 Lost Part 28 | . 20 8 Squads Dispatched 1 | . 1 . Investigation . | . . . Extermination . | . . . Reinforcement 1 | . 1 . Assault . | . . . Garrison . | . . . Intercept . | . . . Searches Triggered . | . . . Construction Impeded . | . . . Haulers Reinforced . | . . . Active Scanning Responses . | . . . Cargo Convoy Interrupts . | . . . Stealth | -11 -10 -10 --------- Run | Yrd Mat Min Distress Signals 2 | . 2 . Communications Jammed . | . . . Distress Signals . | . . . Times Spotted 43 | . 26 17 Peak Tracking Total 17 | . 4 17 Tactical Retreats 5 | . 2 3 Traps | -11 -10 -10 ------- Run | Yrd Mat Min Traps Triggered . | . . . Indirectly . | . . . Trap Hack Attempts . | . . . Triggered . | . . . Disarmed . | . . . Reprogrammed . | . . . Reused . | . . . Traps Extracted . | . . . Installed . | . . . Triggered . | . . . Machines | -11 -10 -10 ---------- Run | Yrd Mat Min Machines Disabled 1 | . 1 . Max in Single Turn 1 | . 1 . Machines Repaired . | . . . Machines Dismantled . | . . . Machines Sabotaged . | . . . Overloaded Fab Kills . | . . . Hacking | -11 -10 -10 --------- Run | Yrd Mat Min Machines Accessed 10 | . 10 . Terminals 8 | . 8 . Fabricators . | . . . Repair Stations 1 | . 1 . Recycling Units 1 | . 1 . Scanalyzers . | . . . Garrison Access . | . . . Total Hacks 27 | . 27 . Successful 14 | . 14 . Failed 12 | . 12 . Catastrophic . | . . . Database Lockouts 1 | . 1 . Manual 8 | . 8 . Terminals 23 | . 23 . Fabricators . | . . . Repair Stations 2 | . 2 . Recycling Units 2 | . 2 . Scanalyzers . | . . . Garrison Access . | . . . Terminal Hacks 9 | . 9 . Robot Analysis 1 | . 1 . Branch Access Points 1 | . 1 . Emergency Access Points 1 | . 1 . Alert Level 1 | . 1 . Locate Traps 2 | . 2 . Hauler Manifests 1 | . 1 . Registered Components 1 | . 1 . Zone Layout 1 | . 1 . Fabricator Hacks . | . . . Repair Station Hacks 2 | . 2 . Scan Component 1 | . 1 . Repair 1 | . 1 . Recycling Unit Hacks 1 | . 1 . Retrieve Components 1 | . 1 . Scanalyzer . | . . . Garrison Access Hacks . | . . . Unauthorized Hacks 2 | . 2 . Terminals 2 | . 2 . Botnet 2 | . 2 . Fabricators . | . . . Repair Stations . | . . . Recycling Units . | . . . Scanalyzers . | . . . Garrison Access . | . . . Data Cores Recovered 1 | . 1 . Used . | . . . Hacking Detections 8 | . 8 . Full Trace Events . | . . . Feedback Events . | . . . Feedback Blocked . | . . . Robot Schematics Acquired . | . . . Robots Built . | . . . Authchips . | . . . Time . | . . . Total Robot Build Rating . | . . . Part Schematics Acquired . | . . . Parts Built . | . . . Authchips . | . . . Time . | . . . Total Part Build Rating . | . . . Part Studies Acquired . | . . . Parts Repaired 1 | . 1 . Time 26 | . 26 . Parts Recycled . | . . . Recycled Matter . | . . . Retrieved Matter . | . . . Retrieved Components 9 | . 9 . Parts Scanalyzed . | . . . Part Schematics Acquired . | . . . Parts Damaged . | . . . Bothacking | -11 -10 -10 ------------ Run | Yrd Mat Min Used RIF Installer . | . . . Robots Hacked . | . . . Non-combat . | . . . Combat . | . . . Robot Hacks Applied . | . . . Relay Couplers Released . | . . . Fabnet Peak Effective % . | . . . Robots Rewired . | . . . Allies Hacked . | . . . Hacks Repelled . | . . . Allies | -11 -10 -10 -------- Run | Yrd Mat Min Total Allies . | . . . Largest Group . | . . . Highest-Rated Group . | . . . Highest-Rated Ally . | . . . Total Orders . | . . . Ally Attacks . | . . . Total Damage . | . . . Kills . | . . . Allies Corrupted . | . . . Allies Melted . | . . . Intel | -11 -10 -10 ------- Run | Yrd Mat Min Active Infowar (turns) . | . . . Robot Analysis Total 1 | . 1 . Derelict Logs Recovered . | . . . Drone Launches . | . . . Drone Recoveries . | . . . Exploration | -11 -10 -10 ------------- Run | Yrd Mat Min Turns Passed 1255 | 35 1156 64 Spaces Moved 668 | 29 627 12 Core 1 | 1 . . Treads . | . . . Legs . | . . . Wheels 667 | 28 627 12 Hover . | . . . Flight . | . . . Fastest Speed 50 | 50 90 135 Average Speed 127 | 85 129 135 Slowest Speed 135 | 90 135 135 Overloaded Moves . | . . . Propulsion Burnouts . | . . . Robots Hopped . | . . . Potential Cave-ins . | . . . Cave-ins Triggered . | . . . Exploration Rate (%) 32 | 3 83 11 Regions Visited 2 Branch Regions 1 Pre-discovered Areas . | . . . Known Exits Taken 1 | . 1 . Unknown Exits Taken 1 | 1 . . Scrap Searched . | . . . Spaces Dug . | . . . Terrain Destroyed . | . . . Melee . | . . . Projectile . | . . . AOE . | . . . Terrain Rammed . | . . . Walls Destroyed . | . . . Machines Disabled . | . . . Actions | -11 -10 -10 --------- Run | Yrd Mat Min Total 907 | 36 840 31 Wait 74 | 2 72 . Move 666 | 28 626 12 Hop . | . . . Pick Up 18 | . 18 . Fast Attach 11 | 6 5 . Attach 5 | . 3 2 Detach . | . . . Swap 12 | . 12 . Drop 18 | . 18 . Fire 103 | . 86 17 Melee . | . . . Ram . | . . . Kick . | . . . Crush . | . . . Escape Stasis . | . . . Rewire . | . . . Trap . | . . . Miscellaneous . | . . . Route ------- -11/Scrapyard -10/Materials (discovered 5 exits: [*Mat x3] / *Min x2) -10/Mines History --------- Turn | Location | Event 18 | -11/Scrapyard | Discovered new exit (range 15) 36 | -11/Scrapyard | Entered Materials 51 | -10/Materials | Identified exit to Mines 51 | -10/Materials | Central database locked down 184 | -10/Materials | Discovered new exit (range 14) 310 | -10/Materials | Build established: Mutant 555 | -10/Materials | Repaired Lgt. Armor Plating 800 | -10/Materials | Discovered new exit (range 5) 1086 | -10/Materials | Discovered new exit (range 9) 1192 | -10/Materials | Entered Mines 1193 | -10/Mines | Assembled infested the area 1198 | -10/Mines | Assisted by a Guerilla fighting off Assembled 1212 | -10/Mines | Core integrity fell below 50% 1252 | -10/Mines | Core integrity fell below 20% 1256 | -10/Mines | Destroyed by as-65937 with Assembled Rifle Last Messages --------------- 01218_ as-70163 destroyed. 01218_ Switching to secondary target: as-01156. 01219_ Knocked back. 01223_ Wheel destroyed. 01223_ System corrupted by crushing effect (+2). 01223_ Knocked back. 01227_ Imp. Ion Engine destroyed. 01227_ System corrupted by crushing effect (+4). 01227_ Knocked back. 01227_ as-13836 destroyed. 01227_ Lgt. Armor Plating destroyed. 01229_ Com. Wheel destroyed. 01234_ as-17036 destroyed. 01241_ Assault Rifle destroyed. 01243_ as-61572 destroyed. 01245_ Assault Rifle destroyed. 01245_ System corrupted by crushing effect (+3). 01253_ D-53 Grenadier destroyed. 01256_ |78OSR29BRTN#WY=7:JXRM& 01256_ The unstable cave ceiling collapses. Map ----- +----------------------------------------------------+ | ?????????????????????????????????????????????????? | | ?????????????????????????????????????????????????? | | ?????????????????????????????????????????????????? | | ?????????????????????????????????????????????????? | | ?????????????????????????????????????????????????? | | ?????????????????????????????????????????????????? | | ?????????????????????????????????????????????????? | | ?????????????????????????????????????????????????? | | ??????????????????????????????###????????????????? | | ?????????????????????????????? #????????????????? | | ?????????????????????????????? #???? ?????????? | | ?????????????????????????????# ###?? ?????????? | | ?????????????????????????????# ## #??????????? | | ?????????????????????????????# # ###????????? | | ?????????????????????????????# ##???????? | | ????????????????????????????## #???????? | | ???????????????????#??????### #???????? | | ???????????????????# ?????# #????????? | | ???????????????????# ##### #?????????? | | ???????????????????# #?????????? | | ???????????????????# #??????????? | | ???????????????????######%### #???????????? | | ????????????????????????# #?# ##???????????? | | ????????????????????????#%### ##???????????? | | ???????????????????????##aa### #???????????? | | ???????????????????????# @ #?#]%= #???????????? | | ???????????????????????# a a""" ##???????????? | | ??????????????????????# %= ##????????????? | | ??????????????????????### % ??????????? | | ????????????????????????#### ?????????? | | ???????????????????????????? ###??????????? | | ????????????????????????????? ##????????????? | | ????????????????????????????? #?????????????? | | ??????????????????????????????# ????????????? | | ??????????????????????????????? # ???????????? | | ???????????????????????????????? ????????????? | | ????????????????????????????????? ????????????? | | ????????????????????????????????? ??????????????? | | ?????????????????????????????????????????????????? | | ?????????????????????????????????????????????????? | | ?????????????????????????????????????????????????? | | ?????????????????????????????????????????????????? | | ?????????????????????????????????????????????????? | | ?????????????????????????????????????????????????? | | ?????????????????????????????????????????????????? | | ?????????????????????????????????????????????????? | | ?????????????????????????????????????????????????? | | ?????????????????????????????????????????????????? | | ?????????????????????????????????????????????????? | | ?????????????????????????????????????????????????? | +----------------------------------------------------+ Best States ------------- Heat Dissipation 25 Energy Generation 12 Energy Capacity 265 Matter Stores 300 Matter Capacity 300 Sight Range 16 Terrain Scan Density 10 Armor Coverage 150 Evasion (%) 44 Item Schematics ----------------- None Robot Schematics ------------------ None Fabricated ------------ Nothing Repaired ---------- Lgt. Armor Plating | 36% | -10/Materials Studied --------- None Alien Tech Used ----------------- None Achievements -------------- None Challenges ------------ None Game ------ Seed TechFusionMultitool Manual? 0 Play Time 00:12:11 Cumulative 325.6 hours Start 2025.12.23 @ 03:04:40 End 2025.12.23 @ 03:16:17 Sessions 1 Manual Loads 0 Difficulty Rogue Special Mode None Game No. 119 Rogue 119 Adventurer 0 Explorer 0 Win Type - Total 5 Types 3/0/0/0/0/0/0/1/0/1 Lore% 76 Gallery% 71 Achievement% 61 Wizard Run 0 Options --------- Layout 1 ASCII 0 Keyboard 0 Movement Mouse Keybinds 0 Fullscreen 2 Font 32/SmallcapsGlow Map View 50x35 Zoom Use 0% Tactical HUD 1 Map Filters NONE Filters NONE Steam 1 RUN: 1faa0454-d3cb-4baa-8015-0f65456370b1